Workbook

Sheet Taxa Composta_SAC
A5: MODELO - Deve ser adaptado utilizando os valores, taxas e prazos do contrato
A8: Liberação
A9: Data | B9: Valor (R$)
A10: 2023-10-02 | B10: 1234567.89
A12: Valores em R$
A13: Data de Vencimento | B13: Data de Pagamento | C13: Principal | D13: Juros Compensatórios (1) | G13: Amortização (2) | I13: Prestação | J13: Outros Eventos
D14: Taxa % a.a. | E14: Dias | F14: Valor | G14: nº de parcelas restantes | H14: Valor | J14: Taxa Flat (3) | K14: Remuneração (4) | L14: Total Outros Eventos
A18: 2023-10-10 | C18: =round_to_even((B10),2) -> 1234567.89 | D18: 0.0455 | E18: =A18-A10 -> 8 | F18: =round_to_even(C18*ROUND((1+D18)^(E18/365),15),2)-C18 -> 1204.58 | Q18: =MOD(O18,20) -> 0
A19: 2023-11-10 | B19: =A19 -> 2023-11-10 | C19: =round_to_even((C18-H18),2) -> 1234567.89 | D19: =D18 -> 0.0455 | E19: =A19-A18 -> 31 | F19: =round_to_even((C19+F18)*ROUND((1+D19)^(E19/365),15),2)-C19 -> 5883.46 | G19: 10 | H19: =round_to_even(C19/G19,2) -> 123456.79 | I19: =H19+F19 -> 129340.25 | Q19: =MOD(O19,20) -> 0
A20: 2023-11-16 | B20: =A20 -> 2023-11-16 | J20: ='Taxa Flat'!D7 -> 299.33 | K20: ='Taxa Flat'!D8 -> 4.23 | L20: =J20+K20 -> 303.56
A21: 2023-12-11 | B21: =A21 -> 2023-12-11 | C21: =round_to_even((C19-H19),2) -> 1111111.1 | D21: =D19 -> 0.0455 | E21: =A21-A19 -> 31 | F21: =round_to_even(C21*ROUND((1+D21)^(E21/365),15),2)-C21 -> 4206.89 | G21: =G19-1 -> 9 | H21: =round_to_even(C21/G21,2) -> 123456.79 | I21: =H21+F21 -> 127663.68 | Q21: =MOD(O21,20) -> 0
A22: 2024-01-01 | B22: ano 366 dias | C22: =round_to_even((C21-H21),2) -> 987654.31 | D22: 0.0455 | E22: =A22-A21 -> 21 | Q22: =MOD(O22,20) -> 0
A23: 2024-01-10 | B23: =A23 -> 2024-01-10 | C23: =round_to_even((C22-H22),2) -> 987654.31 | D23: 0.0455 | E23: =A23-A22 -> 9 | F23: =round_to_even(C23*ROUND((1+D23)^(E22/365)*(1+D23)^(E23/366),15),2)-C23 -> 3615.63 | G23: =G21-1 -> 8 | H23: =round_to_even(C23/G23,2) -> 123456.79 | I23: =H23+F23 -> 127072.42
A24: 2024-02-14 | B24: 2024-02-14 | C24: =round_to_even((C23-H23),2) -> 864197.52 | D24: 0.0455 | E24: 35 | F24: =round_to_even(C24*ROUND((1+D24)^(E24/366),15),2)-C24 -> 3685 | G24: =G23-1 -> 7 | H24: =round_to_even(C24/G24,2) -> 123456.79 | I24: 127141.79
A25: 2024-03-11 | B25: 2024-03-11 | C25: =round_to_even((C24-H24),2) -> 740740.73 | D25: 0.0455 | E25: 26 | F25: =round_to_even(C25*ROUND((1+D25)^(E25/366),15),2)-C25 -> 2345.09 | G25: 6 | H25: =round_to_even(C25/G25,2) -> 123456.79 | I25: 125801.88
A26: 2024-04-10 | B26: 2024-04-10 | C26: =round_to_even((C25-H25),2) -> 617283.94 | D26: 0.0455 | E26: 30 | F26: =round_to_even(C26*ROUND((1+D26)^(E26/366),15),2)-C26 -> 2255.44 | G26: 5 | H26: =round_to_even(C26/G26,2) -> 123456.79 | I26: 125712.23
A27: 2024-05-10 | B27: 2024-05-10 | C27: =round_to_even((C26-H26),2) -> 493827.15 | D27: 0.0455 | E27: 30 | F27: =round_to_even(C27*ROUND((1+D27)^(E27/366),15),2)-C27 -> 1804.35 | G27: 4 | H27: =round_to_even(C27/G27,2) -> 123456.79 | I27: 125261.14
A28: 2024-06-10 | B28: 2024-06-10 | C28: =round_to_even((C27-H27),2) -> 370370.36 | D28: 0.0455 | E28: 31 | F28: =round_to_even(C28*ROUND((1+D28)^(E28/366),15),2)-C28 -> 1398.46 | G28: 3 | H28: =round_to_even(C28/G28,2) -> 123456.79 | I28: 124855.25
A29: 2024-07-10 | B29: 2024-07-10 | C29: =round_to_even((C28-H28),2) -> 246913.57 | D29: 0.0455 | E29: 30 | F29: =round_to_even(C29*ROUND((1+D29)^(E29/366),15),2)-C29 -> 902.18 | G29: 2 | H29: =round_to_even(C29/G29,2) -> 123456.78 | I29: 124358.96
A30: 2024-08-12 | B30: 2024-08-12 | C30: =round_to_even((C29-H29),2) -> 123456.79 | D30: 0.0455 | E30: 33 | F30: =round_to_even(C30*ROUND((1+D30)^(E30/366),15),2)-C30 -> 496.29 | G30: 1 | H30: =round_to_even(C30/G30,2) -> 123456.79 | I30: 123953.08
A32: FÓRMULAS DE CÁLCULO
A34: (1) Juros Compensatórios | G34: (3) Taxa Flat (com arredondamento bancário em 2 casas decimais)
A36: arredondamento em 15 casas decimais | G36: = Liberação x 0,024246%
G37: ou, quando aplicável,
A38: = (Principal x Fator de Atualização) - Principal | G38: = (Liberação - Devolução de Liberação) x 0,024246%
A40: arredondamento bancário em 2 casas decimais | G40: (4) Remuneração
G41: arredondamento em 15 casas decimais
A42: Fator de Atualização
A43: = (1 + Taxa % a.a.)Dias/(365 ou 366) | G43: = (Base de Cálculo x Fator de Remuneração) - Base de Cálculo
A45: (2) Amortização (com arredondamento bancário em 2 casas decimais) | G45: arredondamento bancário em 2 casas decimais
A47: = Principal / nº de Parcelas Restantes | G47: Fator de Remuneração
G48: = Produtório dos Fatores Diários SELIC apurados desde a data inicial (inclusive)
G49: até o dia do efetivo pagamento (exclusive)
G50: Fator Diário Selic
G51: = (1+ Selic % a.a.)1/252
G53: arredondamento em 8 casas decimais

Sheet Taxa Flat
A1: % TAXA FLAT | B1: 0.00024246
A3: A atualização da Taxa Flat é calculada pelo Fator SELIC, desde o dia da Liberação (inclusive) até o dia do efetivo pagamento (exclusive).
A5: DATA DE VENCIMENTO | B5: DATA DE PAGAMENTO | C5: EVENTO | D5: VALOR | F5: Data | G5: Fator Diário SELIC *
A6: ='Taxa Composta_SAC'!A10 -> 2023-10-02 | B6: =A6 -> 2023-10-02 | C6: LIBERACAO | D6: ='Taxa Composta_SAC'!B10 -> 1234567.89 | F6: 2023-10-02 | G6: 1.00047279
A7: ='Taxa Composta_SAC'!A20 -> 2023-11-16 | B7: ='Taxa Composta_SAC'!B20 -> 2023-11-16 | C7: TAXA FLAT | D7: =round_to_even(D6*$B$1,2) -> 299.33 | F7: 2023-10-03 | G7: 1.00047279
A8: =A7 -> 2023-11-16 | B8: =B7 -> 2023-11-16 | C8: REMUNERAÇÃO | D8: =round_to_even(D7*ROUND(PRODUCT(G6:G35),15),2)-D7 -> 4.23 | F8: 2023-10-04 | G8: 1.00047279
F9: 2023-10-05 | G9: 1.00047279
F10: 2023-10-06 | G10: 1.00047279
F11: 2023-10-09 | G11: 1.00047279
F12: 2023-10-10 | G12: 1.00047279
F13: 2023-10-11 | G13: 1.00047279
F14: 2023-10-13 | G14: 1.00047279
F15: 2023-10-16 | G15: 1.00047279
F16: 2023-10-17 | G16: 1.00047279
F17: 2023-10-18 | G17: 1.00047279
F18: 2023-10-19 | G18: 1.00047279
F19: 2023-10-20 | G19: 1.00047279
F20: 2023-10-23 | G20: 1.00047279
F21: 2023-10-24 | G21: 1.00047279
F22: 2023-10-25 | G22: 1.00047279
F23: 2023-10-26 | G23: 1.00047279
F24: 2023-10-27 | G24: 1.00047279
F25: 2023-10-30 | G25: 1.00047279
F26: 2023-10-31 | G26: 1.00047279
F27: 2023-11-01 | G27: 1.00047279
F28: 2023-11-03 | G28: 1.00045513
F29: 2023-11-06 | G29: 1.00045513
F30: 2023-11-07 | G30: 1.00045513
F31: 2023-11-08 | G31: 1.00045513
F32: 2023-11-09 | G32: 1.00045513
F33: 2023-11-10 | G33: 1.00045513
F34: 2023-11-13 | G34: 1.00045513
F35: 2023-11-14 | G35: 1.00045513
A37: * | B37: https://www.bcb.gov.br/estabilidadefinanceira/selicdadosdiarios
